bitfinex/quotes_ETHUSD_20241123
["timestamp","ask_amount","ask_price","bid_price","bid_amount"]
[1732337229316,1.34913565,3337.6,3336.3,0.01]
[1732337229317,0.5214,3337.5,3336.7,0.00334335]
[1732337229662,1.90342415,3337.2,3336.7,1.39334335]
[1732337229803,0.27773565,3337.1,3336.7,1.39334335]
[1732337230002,1.90342415,3337.2,3336.7,1.39334335]
[1732337230219,1.90342415,3337.2,3336.7,1.39]
[1732337230220,0.55,3336.9,3336.7,1.39]
[1732337230419,6.25284025,3336.8,3336.7,1.39]
[1732337230783,6.27786685,3336.8,3336.7,1.39]
[1732337231510,5.72786685,3336.8,3336.7,1.39]
[1732337231708,0.3030427,3336.8,3336.7,1.39]
[1732337232243,0.0250266,3336.8,3336.7,1.39]
[1732337232727,0.30260877,3336.8,3336.7,1.39]
[1732337233222,0.0250266,3336.8,3336.7,1.39]
[1732337237595,0.5464266,3336.8,3336.7,1.39]
[1732337237796,1.37348957,3336.8,3336.7,1.39]
[1732337238218,0.30208957,3336.8,3336.7,1.39]
[1732337238417,0.0250266,3336.8,3336.7,1.39]
[1732337239345,1.37338717,3336.8,3336.7,1.39]
[1732337241844,0.55,3336.7,3335.7,0.01]
[1732337241998,1.0714,3336.2,3335.7,0.01]
[1732337242199,0.55,3336.0,3335.7,0.01]
[1732337242496,0.55,3336.1,3335.7,0.66]
[1732337242708,4.0714,3335.8,3335.7,0.66]
[1732337242909,4.34803437,3335.8,3335.7,0.66]
[1732337244040,4.0714,3335.8,3335.7,0.66]
[1732337246630,4.34764874,3335.8,3335.7,0.66]
[1732337250262,5.08101292,3335.8,3335.7,0.66]
[1732337252369,5.08101292,3335.8,3334.5,0.9229]
[1732337252370,0.5214,3335.7,3334.1,0.00334335]
[1732337252526,3.55,3334.7,3334.1,0.25]
[1732337254263,3.55,3334.7,3334.1,0.25334335]
[1732337254470,3.55,3334.7,3334.1,0.25]
[1732337254975,1.90819259,3334.4,3334.1,0.25]
[1732337255180,0.55,3334.3,3334.1,0.25]
[1732337255478,0.5214,3334.2,3334.1,0.25]
[1732337255673,0.79822818,3334.2,3334.1,0.25]
[1732337255828,0.5214,3334.2,3334.1,0.25]
[1732337256373,1.0714,3334.2,3334.1,0.25]
[1732337257028,1.34833311,3334.2,3334.1,0.25]
[1732337257440,1.53453311,3334.2,3334.1,0.25]
[1732337257851,1.9200152,3334.2,3334.1,0.25]
[1732337258140,1.92644535,3334.2,3334.1,0.25]
[1732337258347,0.00665665,3333.9,3333.8,0.0196647]
[1732337258547,6.44915585,3333.9,3333.8,0.0196647]
[1732337259282,6.83463794,3333.9,3333.8,0.0196647]
[1732337259647,6.83463794,3333.9,3333.8,0.02610928]
[1732337259875,6.83463794,3333.9,3333.7,0.00644458]
[1732337259876,4.2576,3333.8,3333.7,0.00644458]
[1732337260071,1.26425665,3333.7,3332.8,0.0446913]
[1732337260316,3.16579259,3332.9,3332.8,0.0446913]
[1732337260618,6.16579259,3332.9,3332.8,0.0446913]
[1732337260772,6.99417912,3332.9,3332.8,0.0446913]
[1732337260972,7.37966121,3332.9,3332.8,0.0446913]
[1732337261174,0.7076,3332.7,3331.8,0.0446913]
[1732337261377,3.16801612,3331.9,3331.8,0.0446913]
[1732337261578,6.71801612,3331.9,3331.8,0.0446913]
[1732337263717,6.01041612,3331.9,3331.8,0.0446913]
[1732337263933,3.55,3331.9,3331.8,0.0446913]
[1732337264071,0.55,3332.1,3331.8,0.0446913]
[1732337264419,2.46041612,3332.7,3331.8,0.0446913]
[1732337264717,2.46041612,3332.7,3331.8,0.0546913]
[1732337265774,2.46041612,3332.7,3331.2,0.9253]
[1732337265775,1.2576,3332.2,3331.3,0.00803465]
[1732337265979,4.2576,3332.2,3331.3,0.00803465]
[1732337266576,4.2576,3332.2,3331.7,0.00803465]
[1732337266776,3.0,3332.2,3331.7,0.00803465]
[1732337267000,2.46041612,3332.3,3331.7,0.00803465]
[1732337267634,3.0,3332.5,3331.7,0.00803465]
[1732337267635,0.55,3332.5,3331.7,0.00803465]
[1732337268422,2.46041612,3332.3,3331.3,0.00803465]
[1732337268746,0.55,3332.2,3331.3,0.00803465]
[1732337268923,2.46041612,3332.3,3331.3,0.00803465]
[1732337269124,0.55,3332.2,3331.3,0.00803465]
[1732337269523,3.55,3332.2,3331.3,0.00803465]
[1732337269849,3.55,3332.2,3331.7,0.00803465]
[1732337270055,3.55,3332.2,3331.6,0.00803465]
[1732337270553,3.55,3332.2,3331.7,0.00803465]
[1732337272411,3.55,3332.2,3331.2,0.93333465]
[1732337272652,3.55,3332.2,3331.7,0.00803465]
[1732337272854,3.55,3332.2,3331.2,0.93333465]
[1732337273429,5.46041612,3331.9,3330.8,0.9699913]
[1732337273634,4.2576,3331.4,3330.8,0.0446913]
[1732337273957,4.2576,3331.4,3330.8,0.05272595]
[1732337274630,2.46041612,3331.5,3330.8,0.05272595]
[1732337274826,0.55,3332.2,3331.3,0.00803465]
[1732337275056,3.55,3332.2,3331.3,0.00803465]
[1732337275262,3.55,3332.2,3331.4,0.9253]
[1732337275415,2.46041612,3332.3,3331.7,0.00803465]
[1732337276636,2.46041612,3332.3,3331.4,0.9253]
[1732337276863,3.55,3332.2,3331.4,0.9253]
[1732337277020,2.46041612,3331.9,3331.4,0.9253]
[1732337277366,2.46041612,3331.9,3331.2,0.30673465]
[1732337277514,2.46041612,3331.9,3331.1,0.9401]
[1732337277719,0.55,3331.8,3331.1,0.9401]
[1732337277959,3.55,3331.4,3330.8,0.99282595]
[1732337278159,3.55,3331.4,3330.8,0.9847913]
[1732337278347,4.2576,3331.4,3330.8,0.9847913]
[1732337278823,2.46041612,3331.1,3330.8,0.0446913]
[1732337279020,0.55,3331.0,3330.8,0.0446913]
[1732337280162,3.55,3331.0,3330.8,0.0446913]
[1732337281564,1.2576,3330.9,3330.8,0.0446913]
[1732337282783,1.5343707,3330.9,3330.8,0.0446913]
[1732337282922,1.2576,3330.9,3330.8,0.0446913]
[1732337283124,1.53435684,3330.9,3330.8,0.0446913]
[1732337284321,2.68808178,3330.9,3330.8,0.0446913]
[1732337284520,5.68808178,3330.9,3330.8,0.0446913]
[1732337285033,5.68808178,3330.9,3329.8,0.0446913]
[1732337285034,0.55,3330.6,3329.8,0.0446913]
[1732337285235,6.01041612,3329.9,3329.8,0.0446913]
[1732337286067,6.28752015,3329.9,3329.8,0.0446913]
[1732337286273,6.01041612,3329.9,3329.8,0.0446913]
[1732337286833,6.2872746,3329.9,3329.8,0.0446913]
[1732337287033,6.9948746,3329.9,3329.8,0.0446913]
[1732337287282,7.41035669,3329.9,3329.8,0.0446913]
[1732337287432,7.13349821,3329.9,3329.8,0.0446913]
[1732337287873,12.13349821,3329.9,3329.8,0.0446913]
[1732337288230,12.13349821,3329.9,3329.8,0.05113588]
[1732337288732,12.12349821,3329.9,3329.8,0.05113588]
[1732337288937,6.16801612,3329.9,3329.8,0.05113588]
[1732337289457,2.46041612,3329.9,3329.8,0.05113588]
[1732337290480,6.01041612,3329.9,3329.8,0.05113588]
[1732337290766,2.46041612,3329.9,3329.8,0.05113588]
[1732337290978,2.46041612,3330.3,3329.8,0.05113588]
[1732337291565,2.46041612,3329.9,3329.8,0.05113588]
[1732337291942,5.46041612,3329.9,3329.8,0.05113588]
[1732337292650,6.01041612,3329.9,3329.8,0.05113588]
[1732337294585,6.41589821,3329.9,3329.8,0.05113588]
[1732337294888,7.14639821,3329.9,3329.8,0.05113588]
[1732337295959,12.14639821,3329.9,3329.8,0.05113588]
[1732337297178,3.56196535,3329.8,3329.6,0.00644458]
[1732337297494,3.56196535,3329.8,3328.8,0.0446913]
[1732337297495,0.7305,3329.4,3328.8,0.0446913]
[1732337297695,6.74091612,3328.9,3328.8,0.0446913]
[1732337298409,6.01041612,3328.9,3328.8,0.0446913]
[1732337298996,6.74091612,3328.9,3328.8,0.03845215]
[1732337299209,7.14639821,3328.9,3328.8,0.03845215]
[1732337299877,12.14639821,3328.9,3328.8,0.03845215]
[1732337302683,3.55,3327.9,3327.3,0.9235]
[1732337303197,3.55,3327.9,3327.0,0.9235]
[1732337303856,3.55,3327.9,3325.8,0.0446913]
[1732337304203,4.68598209,3327.9,3326.8,0.9681913]
[1732337304702,4.68598209,3327.9,3327.5,0.0495858]
[1732337304996,3.01041612,3327.6,3327.5,0.0495858]
[1732337305356,6.01041612,3327.6,3327.5,0.0495858]
[1732337305590,6.41589821,3327.6,3327.5,0.0495858]
[1732337305971,11.41589821,3327.6,3327.5,0.0495858]
[1732337306394,12.14639821,3327.6,3327.5,0.0495858]
[1732337306893,3.55,3327.5,3326.7,0.00803465]
[1732337307097,0.55,3327.1,3326.8,0.9235]
[1732337307593,3.0,3327.9,3327.0,0.9235]
[1732337307975,2.46041612,3328.0,3327.0,0.9235]
[1732337308175,2.46041612,3328.0,3327.5,0.9235]
[1732337308473,3.20364601,3328.3,3327.5,0.9235]
[1732337308659,2.46041612,3327.9,3327.5,0.9235]
[1732337309082,2.88423154,3327.9,3327.5,0.9235]
[1732337309283,3.0,3327.8,3327.5,0.9235]
[1732337309557,3.0,3327.8,3327.1,0.9235]
[1732337309558,0.55,3327.7,3327.1,0.9235]
[1732337309758,2.46041612,3327.5,3327.1,0.9235]
[1732337309959,3.55,3327.4,3327.2,0.00803465]
[1732337310461,0.55,3327.7,3327.2,0.00803465]
[1732337311857,0.55,3327.7,3327.1,0.9235]
[1732337313401,1.2805,3327.7,3327.0,0.00803465]
[1732337313701,0.55,3327.7,3327.0,0.00803465]
[1732337313878,0.55,3327.7,3326.8,0.93153465]
[1732337314261,0.55,3327.4,3326.8,0.93153465]
[1732337314463,3.55,3327.4,3326.8,0.9235]
[1732337315762,3.55,3327.4,3326.8,0.93153465]
[1732337315961,0.55,3327.4,3326.8,0.9235]
[1732337316195,0.55,3327.4,3326.9,0.00803465]
[1732337316377,2.46041612,3327.6,3326.9,0.00803465]
[1732337316870,3.0,3327.5,3326.8,0.9235]
[1732337317226,0.01,3327.0,3326.4,0.0519972]
[1732337317497,2.46041612,3326.3,3325.7,0.98053465]
[1732337317703,2.46041612,3326.3,3325.8,0.00803465]
[1732337317862,3.55,3326.2,3325.8,0.00803465]
[1732337318262,3.55,3326.2,3325.1,0.98053465]
[1732337318263,0.55,3325.8,3325.1,0.98053465]
[1732337318464,3.55,3325.8,3325.4,0.00803465]
[1732337318864,3.55,3325.8,3325.3,0.00803465]
[1732337319601,3.55,3325.8,3325.4,0.00803465]
[1732337320407,3.55,3325.8,3325.2,0.06003185]
[1732337321226,2.46041612,3325.3,3325.2,0.06003185]
[1732337321366,6.01041612,3325.3,3325.2,0.0519972]
[1732337322903,6.01041612,3325.3,3325.2,0.05844178]
[1732337327076,5.46041612,3325.3,3325.2,0.05844178]
[1732337327368,5.0,3325.7,3325.3,0.00644458]
[1732337327973,2.46041612,3325.7,3325.3,0.00644458]
[1732337328369,3.19421612,3325.7,3325.3,0.00644458]
[1732337328677,3.45714875,3325.6,3325.3,0.00644458]
[1732337329321,0.55,3325.5,3325.3,0.00644458]
[1732337329487,1.00714875,3325.5,3325.3,0.00644458]
[1732337329692,1.00714875,3325.4,3325.3,0.00644458]
[1732337329985,3.55,3325.4,3325.3,0.00644458]
[1732337330977,0.55,3325.4,3325.3,0.00644458]
[1732337331186,0.55,3325.5,3325.3,0.00644458]
[1732337333286,1.00714875,3325.5,3325.3,0.00644458]
[1732337333486,1.00714875,3325.4,3325.3,0.00644458]
[1732337335333,0.55,3325.5,3325.3,0.00644458]
[1732337335517,1.00714875,3325.4,3325.3,0.00644458]
[1732337337234,0.45714875,3325.4,3325.3,0.91124458]
[1732337337434,2.46041612,3325.7,3325.4,0.00644458]
[1732337337992,0.45714875,3325.6,3325.4,0.00644458]
[1732337338738,94.0,3325.4,3325.3,0.00644458]
[1732337338904,97.45714875,3325.4,3325.3,0.00644458]
[1732337339690,98.00714875,3325.4,3325.3,0.00644458]
[1732337341040,4.2838,3325.3,3325.2,0.05844178]
[1732337341839,4.74094875,3325.3,3325.2,0.05844178]
[1732337342642,0.01,3325.2,3324.2,0.9048]
[1732337342808,0.55,3324.2,3324.0,0.0519972]
[1732337343722,0.55,3324.2,3324.1,0.00803465]
[1732337344733,0.55,3324.2,3324.0,0.0519972]
[1732337347293,0.45714875,3324.1,3324.0,0.0519972]
[1732337347521,1.00714875,3324.1,3324.0,0.0519972]
[1732337349609,0.55,3324.1,3324.0,0.0519972]
[1732337353365,0.55,3324.1,3322.9,0.06003185]
[1732337353366,2.46920134,3324.1,3322.9,0.06003185]
[1732337353645,3.0,3324.2,3322.9,0.06003185]
[1732337353646,2.46920134,3323.0,3322.9,0.06003185]
[1732337354212,3.0,3323.9,3322.9,0.06003185]
[1732337354213,0.55,3323.5,3323.3,0.00803465]
[1732337355221,0.55,3323.5,3323.3,0.02088365]
[1732337356448,0.55,3323.5,3323.4,0.9048]
[1732337357206,0.55,3323.5,3323.4,0.012849]
[1732337357513,2.46920134,3323.5,3323.4,0.012849]
[1732337359408,3.0,3323.7,3323.6,0.00803465]
[1732337359612,4.91920134,3323.9,3323.6,0.00803465]
[1732337359942,1.91920134,3323.9,3323.6,0.00803465]
[1732337360146,1.91920134,3323.9,3323.6,0.02088365]
[1732337360147,3.0,3323.8,3323.6,0.02088365]
[1732337360744,3.0,3323.8,3323.7,0.9731]
[1732337360944,1.91920134,3324.3,3323.8,0.00803465]
[1732337362045,1.91920134,3324.3,3323.9,0.9731]
[1732337362687,0.55,3324.2,3323.9,0.9731]
[1732337363491,0.55,3324.0,3323.8,0.00803465]
[1732337363658,2.46920134,3323.9,3323.7,0.012849]
[1732337363871,2.46920134,3323.9,3323.8,0.00803465]
[1732337364048,3.55,3323.8,3323.7,0.012849]
[1732337364257,3.95442375,3323.8,3323.3,0.00803465]
[1732337364457,2.46920134,3323.4,3323.1,0.9731]
[1732337364789,0.55,3323.3,3323.1,0.9731]
[1732337365090,0.55,3323.3,3323.0,0.00803465]
[1732337365249,0.55,3323.3,3322.8,0.9731]
[1732337365587,1.91920134,3323.0,3322.8,0.98113465]
[1732337365747,0.55,3322.9,3322.8,0.00803465]
[1732337367193,0.55,3322.9,3321.4,0.04009973]
[1732337367194,0.9363,3322.8,3321.4,0.03009973]
[1732337367421,0.55,3321.4,3321.2,0.0555174]
[1732337367687,0.55,3321.4,3321.2,0.03345232]
[1732337368496,0.55,3321.3,3321.2,0.03345232]
[1732337368747,0.55,3321.4,3321.2,0.03345232]
[1732337368985,0.55,3321.5,3321.2,0.03345232]
[1732337369297,1.07483315,3321.5,3321.2,0.03345232]
[1732337369450,0.52483315,3321.4,3321.2,0.03345232]
[1732337369645,0.55,3321.3,3321.2,0.03345232]
[1732337370087,5.01113315,3321.3,3321.2,0.03345232]
[1732337370388,5.01113315,3321.3,3320.1,0.9731]
[1732337370577,0.55,3321.1,3321.0,0.00644458]
[1732337370757,1.07483315,3321.1,3321.0,0.00644458]
[1732337371360,1.07483315,3321.1,3319.6,0.9731]
[1732337371695,0.55,3320.4,3319.6,0.9731]
[1732337371997,3.55,3320.4,3319.6,0.9731]
[1732337372166,3.0,3321.0,3320.1,0.9731]
[1732337372531,0.55,3320.9,3320.1,0.9731]
[1732337372999,3.02633707,3320.7,3319.5,0.9731]
[1732337373203,2.47633707,3320.3,3319.5,0.9731]
[1732337373357,3.55,3320.2,3319.5,0.9731]
[1732337373964,3.55,3320.2,3318.7,1.0286174]
[1732337374197,3.55,3320.2,3319.4,0.9731]
[1732337374903,3.55,3320.2,3318.8,0.9731]
[1732337375676,3.55,3320.2,3319.6,0.9731]
[1732337376808,0.55,3320.5,3319.6,0.9731]
[1732337377107,0.55,3320.6,3319.6,0.9731]
[1732337377318,2.47633707,3320.7,3319.6,0.3286174]
[1732337377616,2.47633707,3320.3,3319.6,0.3286174]
[1732337378609,0.55,3320.2,3319.6,0.3286174]
[1732337378969,3.55,3320.2,3319.6,0.3286174]
[1732337379371,3.55,3320.2,3318.4,0.01]
[1732337379372,2.47633707,3319.9,3318.4,0.01]
[1732337379571,0.55,3319.8,3318.7,0.01]
[1732337379810,3.55,3319.8,3318.7,0.01]
[1732337380047,0.9145,3319.0,3318.1,0.0646352]
[1732337380213,0.55,3318.5,3318.1,0.0646352]
[1732337380374,3.55,3318.5,3318.1,0.0646352]
[1732337383409,3.94083707,3318.2,3318.1,0.0646352]
[1732337383588,6.02633707,3318.2,3318.1,0.0646352]
[1732337384427,7.37192022,3318.2,3318.1,0.0646352]
[1732337385498,3.0,3318.3,3318.1,0.0646352]
[1732337386024,5.0,3319.3,3318.2,0.9555]
[1732337386331,5.0,3319.3,3318.1,0.0646352]
[1732337386332,2.47633707,3318.9,3318.1,1.0201352]
[1732337386887,2.47633707,3319.7,3318.1,1.0201352]
[1732337387403,2.47633707,3319.7,3318.2,0.9555]
[1732337389328,5.0,3319.9,3318.6,0.9555]
[1732337389820,2.47633707,3319.7,3318.6,0.9555]
[1732337390001,150.0,3320.0,3318.6,0.9555]
[1732337390533,150.0,3320.0,3319.9,0.9755]
[1732337390734,150.0,3320.0,3319.9,0.9555]
[1732337392442,150.0,3320.0,3319.1,0.9555]
[1732337392733,3.0,3319.9,3319.1,0.9555]
[1732337394429,150.0,3320.0,3319.3,0.9555]
[1732337396892,3.0,3319.9,3319.3,0.9555]
[1732337398045,150.0,3320.0,3319.3,0.9655]
[1732337398197,150.0,3320.0,3319.9,0.02]
[1732337398403,150.0,3320.0,3319.9,1.002]
[1732337399322,150.0,3320.0,3319.9,0.992]
[1732337400230,147.9798,3320.0,3319.9,0.992]
[1732337400430,145.9831,3320.0,3319.9,0.01]
[1732337401800,140.65789983,3320.0,3319.9,5.7067]
[1732337402115,126.39189763,3320.0,3319.9,6.91006147]
[1732337402426,126.39189763,3320.0,3319.9,6.61126147]
[1732337402740,126.39189763,3320.0,3319.9,7.16126147]
[1732337404044,124.91379505,3320.0,3319.9,7.16126147]
[1732337404344,124.75936642,3320.0,3319.9,7.16126147]
[1732337404499,124.75936642,3320.0,3319.9,6.61126147]
[1732337404702,124.75936642,3320.0,3319.9,3.61126147]
[1732337404925,124.75936642,3320.0,3319.9,2.6967]
[1732337405129,124.75936642,3320.0,3319.9,0.01]
[1732337405499,124.75936642,3320.0,3319.9,0.02]
[1732337406117,124.75936642,3320.0,3319.9,0.01]
[1732337406439,124.75936642,3320.0,3319.9,0.02]
[1732337407243,124.75936642,3320.0,3319.9,0.0202]
[1732337407549,124.75936642,3320.0,3319.9,0.0302]
[1732337408055,124.75936642,3320.0,3319.9,0.0102]
[1732337409256,124.75936642,3320.0,3319.9,0.0302]
[1732337411531,124.75936642,3320.0,3319.9,0.06031222]
[1732337411734,122.852064,3320.0,3319.9,0.06031222]
[1732337411951,122.82195289,3320.0,3319.9,0.06031222]
[1732337412309,122.52335289,3320.0,3319.9,0.90911222]
[1732337412755,122.52335289,3320.0,3319.9,0.879]
[1732337414510,122.22249648,3320.0,3319.9,0.879]
[1732337414715,119.97393858,3320.0,3319.9,0.879]
[1732337415748,119.97393858,3320.0,3319.9,0.0302]
[1732337415926,119.97393858,3320.0,3319.9,0.90911207]
[1732337416608,119.97393858,3320.0,3319.9,0.329]
[1732337416810,119.97393858,3320.0,3319.9,0.0302]
[1732337417654,109.72543698,3320.0,3319.9,0.0302]
[1732337417853,102.15403716,3320.0,3319.9,0.0302]
[1732337418951,101.5135594,3320.0,3319.9,0.0302]
[1732337419174,99.83110723,3320.0,3319.9,0.0302]
[1732337420066,96.28113,3320.0,3319.9,0.0302]
[1732337420375,96.17553761,3320.0,3319.9,0.0302]
[1732337420669,91.77931308,3320.0,3319.9,0.35908085]
[1732337421073,90.59238665,3320.0,3319.9,0.35908085]
[1732337421546,80.64485855,3320.0,3319.9,1.10191777]
[1732337421862,80.64485855,3320.0,3319.9,1.1804915]
[1732337422266,80.34625855,3320.0,3319.9,4.0584915]
[1732337422460,80.34625855,3320.0,3319.9,7.0584915]
[1732337422661,79.8398557,3320.0,3319.9,7.02841065]
[1732337422881,76.21863705,3320.0,3319.9,7.02841065]
[1732337423298,76.21863705,3320.0,3319.9,8.57169082]
[1732337423448,67.33940851,3320.0,3319.9,8.57169082]
[1732337423792,58.84289183,3320.0,3319.9,8.57169082]
[1732337423995,58.84289183,3320.0,3319.9,8.8950013]
[1732337424147,56.25532409,3320.0,3319.9,8.8950013]
[1732337425178,56.25532409,3320.0,3319.9,7.35172113]
[1732337426061,56.25532409,3320.0,3319.9,7.90172113]
[1732337426592,53.06907259,3320.0,3319.9,7.90172113]
[1732337426751,47.93049747,3320.0,3319.9,7.90172113]
[1732337428495,47.93049747,3320.0,3319.9,7.10350454]
[1732337428667,47.93049747,3320.0,3319.9,7.54385006]
[1732337429280,39.08049747,3320.0,3319.9,7.54385006]
[1732337429477,39.08049747,3320.0,3319.9,8.30114437]
[1732337430316,0.0109608,3323.1,3323.0,0.57644458]
[1732337430472,0.0109608,3323.1,3323.0,0.60646007]
[1732337431609,0.0109608,3323.1,3323.0,0.57644458]
[1732337432314,0.0109608,3323.1,3323.0,0.65979511]
[1732337434885,0.9505608,3323.1,3323.0,0.08979511]
[1732337435095,0.9505608,3323.1,3323.0,0.00644458]
[1732337435707,0.0109608,3323.1,3323.0,0.01644458]
[1732337435911,0.9505608,3323.1,3323.0,0.01644458]
[1732337437621,0.9505608,3323.1,3323.0,0.90527677]
[1732337437622,0.0109608,3323.1,3323.0,0.90527677]
[1732337437920,0.0109608,3323.1,3323.0,0.95911582]
[1732337438585,0.0109608,3323.1,3323.0,0.94911582]
[1732337439307,0.0109608,3323.1,3323.0,0.39911582]
[1732337439511,0.0109608,3323.1,3323.0,0.94911582]
[1732337440172,0.9518,3323.8,3323.0,0.94911582]
[1732337440288,0.0347544,3323.1,3323.0,0.39911582]
[1732337440624,0.0347544,3323.1,3323.0,0.40911582]
[1732337440788,0.0347544,3323.1,3323.0,0.94911582]
[1732337440990,0.0347544,3323.1,3323.0,0.95911582]
[1732337441694,0.0347544,3323.1,3323.0,0.94911582]
[1732337446288,0.9865544,3323.1,3323.0,0.94911582]
[1732337446629,0.0347544,3323.1,3323.0,0.91908363]
[1732337448223,0.0347544,3323.1,3323.0,0.35908363]
[1732337448434,0.0347544,3323.1,3323.0,0.90908363]
[1732337448973,0.9865544,3323.1,3323.0,0.35908363]
[1732337449465,0.9865544,3323.1,3323.0,0.06028363]
[1732337450027,0.9865544,3323.1,3322.9,0.00644458]
[1732337450252,0.9865544,3323.1,3323.0,0.05018827]
[1732337450561,0.9865544,3323.1,3322.9,0.00644458]
[1732337454546,0.9865544,3323.1,3322.9,0.03648689]
[1732337454743,0.0347544,3323.1,3323.0,0.55]
[1732337454950,0.0347544,3323.1,3323.0,0.60032841]
[1732337457078,0.0347544,3323.1,3323.0,0.61032841]
[1732337460701,0.0347544,3323.1,3323.0,0.91912841]
[1732337460912,0.0347544,3323.1,3323.0,1.62882841]
[1732337461613,0.0347544,3323.1,3323.0,0.90912841]
[1732337461917,0.0347544,3323.1,3323.0,0.61032841]
[1732337462523,0.0347544,3323.1,3323.0,0.90912841]
[1732337463509,0.0347544,3323.1,3323.0,0.91912841]
[1732337464610,0.0347544,3323.1,3323.0,1.62882841]
[1732337464847,0.0347544,3323.1,3323.0,2.47984514]
[1732337465041,0.0347544,3323.1,3323.0,5.47984514]
[1732337467430,0.0347544,3323.1,3323.0,1.62882841]
[1732337467859,0.0347544,3323.1,3323.0,1.09884142]
[1732337468315,0.0347544,3323.1,3323.0,1.58085361]
[1732337468947,0.0347544,3323.1,3323.0,1.59085361]
[1732337469417,0.0347544,3323.1,3323.0,1.95985815]
[1732337469865,0.0347544,3323.1,3323.0,5.50985815]
[1732337470618,0.0347544,3323.1,3323.0,2.14085361]
[1732337471020,0.0347544,3323.1,3323.0,1.64884142]
[1732337471932,0.0347544,3323.1,3323.0,0.08034142]
[1732337473223,0.0347544,3323.1,3323.0,0.03001301]
[1732337474123,1.1956544,3323.1,3323.0,0.04669245]
[1732337474324,1.1956544,3323.1,3322.9,0.00644458]
[1732337480165,1.46471547,3323.0,3322.9,0.00644458]
[1732337480577,1.4618544,3323.0,3322.9,0.00644458]
[1732337482381,1.90803984,3323.0,3322.9,0.00644458]
[1732337482576,1.3431,3322.9,3322.8,0.00644458]
[1732337484992,13.28072197,3322.9,3322.8,0.00644458]
[1732337485306,13.2431,3322.9,3322.8,0.00644458]
[1732337485730,1.3431,3322.7,3322.1,0.875]
[1732337485878,1.3431,3322.4,3320.7,0.2988]
[1732337486080,1.3431,3322.4,3320.3,0.01]
[1732337486081,1.3431,3322.1,3320.8,0.03007877]
[1732337486279,1.3431,3322.1,3320.4,0.03007877]
[1732337486495,1.3431,3322.1,3320.6,0.01]
[1732337486690,0.43431,3322.0,3320.6,0.01]
[1732337486911,1.3431,3321.9,3320.6,0.01]
[1732337487218,1.3431,3321.9,3320.4,0.03007877]
[1732337487914,1.3431,3321.7,3320.4,0.03007877]
[1732337488125,1.3431,3321.7,3320.5,0.03008005]
[1732337489012,1.3431,3321.7,3320.6,0.03008008]
[1732337489378,1.3431,3321.5,3320.3,0.0300801]
[1732337490410,1.3431,3321.5,3320.0,0.03009031]
[1732337490622,1.3431,3321.5,3320.4,0.04685031]
[1732337490827,13.28073845,3321.4,3319.9,0.04216025]
[1732337491007,4.3431,3321.3,3319.9,0.04216025]
[1732337491205,13.28074185,3321.2,3320.0,0.04703544]
[1732337491409,13.2431,3321.2,3320.1,0.03009713]
[1732337491584,14.56741,3321.2,3320.1,0.03009713]
[1732337491781,4.3431,3321.1,3320.1,0.03009713]
[1732337492020,4.3431,3321.1,3319.9,0.0120699]
[1732337492021,4.38074188,3321.0,3319.9,0.0120699]
[1732337492227,1.3431,3320.9,3319.9,0.0120699]
[1732337492528,1.3431,3320.7,3319.9,0.0120699]
[1732337492921,1.3431,3320.5,3319.9,0.0120699]
[1732337493563,3.01,3321.0,3319.9,0.0120699]
[1732337493564,1.3431,3320.4,3319.9,0.0120699]
[1732337495030,0.03765129,3320.3,3319.9,0.0120699]
[1732337495249,1.3431,3320.1,3319.9,0.0120699]
[1732337495463,1.3431,3320.0,3319.9,0.0120699]
[1732337498476,13.2431,3320.0,3319.9,0.0120699]
[1732337498633,14.8711754,3320.0,3319.9,0.0120699]
[1732337499131,14.8811754,3320.0,3319.9,0.0120699]
[1732337499747,1.4142,3319.8,3319.1,0.0373157]
[1732337500078,1.4242,3319.5,3319.1,0.0373157]
[1732337500275,0.01,3319.2,3319.1,0.0373157]
[1732337500487,4.46187102,3319.2,3319.1,0.0373157]
[1732337500639,5.80182481,3319.2,3319.1,0.0373157]
[1732337501670,3.0,3319.1,3318.1,0.0442324]
[1732337501874,1.4142,3318.8,3318.1,0.0442324]
[1732337502040,1.4142,3318.6,3318.1,0.0442324]
[1732337502381,3.0,3318.4,3318.1,0.0442324]
[1732337502537,11.9,3318.4,3318.1,0.0442324]
[1732337502736,13.23142,3318.4,3318.1,0.0442324]
[1732337502937,1.4142,3318.3,3318.1,0.0442324]
[1732337505585,3.0,3318.2,3318.1,0.0442324]
[1732337507148,8.9,3318.3,3318.1,0.0442324]
[1732337508949,1.4142,3318.2,3318.1,0.0442324]
[1732337509762,8.9,3318.3,3318.1,0.0442324]
[1732337509958,0.89,3318.2,3318.1,0.0442324]
[1732337510160,0.74500131,3318.9,3318.1,0.0442324]
[1732337510161,8.9,3319.7,3318.1,0.0442324]
[1732337510462,1.4142,3319.7,3318.4,0.8488]
[1732337510785,0.89,3319.6,3318.5,0.03012695]
[1732337511095,1.4142,3319.7,3318.7,1.5912]
[1732337511384,1.4142,3319.7,3318.8,0.0746438]
[1732337511707,8.9,3320.1,3318.8,0.58012518]
[1732337512015,0.01,3320.4,3318.8,0.58012518]
[1732337512016,2.3042,3320.0,3318.8,0.58012518]
[1732337512222,1.4142,3320.0,3318.8,0.58012518]
[1732337514295,3.0,3320.2,3319.0,0.55]
[1732337514501,3.0,3320.2,3319.1,0.0301182]
[1732337514697,1.33142,3320.1,3319.1,0.0301182]
[1732337514910,1.4142,3320.3,3319.2,1.2924]
[1732337515114,1.4142,3320.3,3319.3,0.03011366]
[1732337515680,1.4142,3320.3,3319.3,0.58011366]
[1732337516110,1.4142,3320.3,3319.3,0.55]
[1732337516422,0.0376516,3320.2,3318.6,1.2924]
[1732337516578,4.4242,3320.0,3319.4,0.0443018]
[1732337516912,4.3700786,3319.9,3318.6,1.2924]
[1732337517115,0.01,3319.8,3318.6,1.2924]
[1732337517320,3.01,3319.6,3318.3,1.2924]
[1732337517473,3.0,3319.4,3318.3,1.2924]
[1732337517940,3.0,3319.4,3318.4,0.03013057]
[1732337518416,11.9,3319.4,3318.4,0.03013057]